Cogmind - Beta 9.6 @@@ ROGUE MODE // 2020.05.09 @ 19:55:02 Player: Demise Result: Self-destructed Performance ------------- Evolutions (1) 500 Regions Visited (2) 400 Robots Destroyed (14) 70 Value Destroyed (344) 344 Prototype IDs (0) 0 Alien Tech Used (0) 0 Bonus (0) 0 TOTAL SCORE: 1314 Bonus ------- None Cogmind --------- Core Integrity 363/400 Matter 300/300 Energy 112/125 System Corruption 0% Temperature Cool (349) Movement Flying (40) Location -9/Materials Parts ------- > --- POWER (1) -------- Light Ion Engine > --- PROPULSION (3) --- Flight Unit > --- UTILITY (3) ------ Seismic Analyzer Hacking Suite > --- WEAPON (2) ------- Small Laser > --- INVENTORY (4) ---- Small Storage Unit Peak State ------------ > --- POWER ------------ Light Ion Engine > --- PROPULSION ------- Flight Unit Flight Unit Flight Unit > --- UTILITY ---------- Improved Sensor Array Seismic Analyzer Hacking Suite > --- WEAPON ----------- Small Laser Particle Gun > --- INVENTORY -------- Small Storage Unit Small Laser [Rating: 13] Favorites ----------- Power Light Ion Engine Engine Light Ion Engine Propulsion Compact Wheel Leg Aluminum Leg Wheel Compact Wheel Flight Unit Flight Unit Utility Seismic Analyzer Device Improved Sensor Array Storage Small Storage Unit Processor Seismic Analyzer Hackware Hacking Suite Weapon Small Laser Energy Gun Small Laser Ballistic Gun Assault Rifle Build | -11 -10 -9 ------- Run | Scr Mat Mat Slots Evolved 2 | . . 2 Power . | . . . Propulsion 1 | . . 1 Utility 1 | . . 1 Weapon . | . . . Parts Attached 17 | 3 5 9 Power 2 | . 1 1 Engine 2 | . 1 1 Core . | . . . Reactor . | . . . Propulsion 5 | 2 . 3 Treads . | . . . Leg . | . . . Wheel 2 | 2 . . Hover . | . . . Flight 3 | . . 3 Utility 4 | 1 1 2 Device 1 | . . 1 Storage . | . . . Processor 2 | 1 1 . Hackware 1 | . . 1 Protection . | . . . Artifact . | . . . Weapon 6 | . 3 3 Energy Gun 6 | . 3 3 Energy Cannon . | . . . Ballistic Gun . | . . . Ballistic Cannon . | . . . Launcher . | . . . Special Weapon . | . . . Impact Weapon . | . . . Slashing Weapon . | . . . Piercing Weapon . | . . . Special Melee Weapon . | . . . Unidentified Prototypes . | . . . Parts Lost 10 | . 3 7 Power . | . . . Propulsion 3 | . 1 2 Utility 1 | . . 1 Weapon 6 | . 2 4 Highest Loss Streak 6 | . 2 6 Average Slot Usage (%) 87 | . 91 82 Engine 12 | . 14 11 Wheel 13 | . 20 5 Flight 6 | . . 15 Device 4 | . . 9 Storage 10 | . 14 5 Processor 12 | . 14 11 Hackware 1 | . . 4 Energy Gun 19 | . 17 20 Ballistic Gun 5 | . 9 . Naked Turns . | . . . Heaviest Build 13 | 10 12 13 Greatest Support 26 | 26 26 16 Greatest Overweight (x) 1 | . . 1 Average Overweight (x) . | . . . Largest Inventory Capacity 6 | 6 6 6 Average Capacity 5 | 6 6 4 Most Carried 6 | 6 4 4 Average Carried 2 | 2 2 3 Final Capacity 6 | 6 6 4 Final Carried 4 | 2 4 1 Class Distribution -------------------- 79% | Mutant 20% | Scavenger-Mutant Dominant Class ---------------- Mutant | -10/Materials Scavenger-Mutant | -9/Materials Resources | -11 -10 -9 ----------- Run | Scr Mat Mat Matter Collected 420 | 242 108 70 Remotely . | . . . Salvage Created 497 | 72 272 153 Parts 24 | 2 14 8 Haulers Intercepted . | . . . Recyclers Shooed . | . . . Parts Field Recycled . | . . . Retrieved Matter . | . . . Parts Self-Destructed . | . . . Prevented . | . . . Kills | -11 -10 -9 ------- Run | Scr Mat Mat Combat Hostiles Destroyed 11 | . 6 5 Guns 11 | . 6 5 Classes Destroyed 5 | 2 1 2 Tunneler 1 | 1 . . Recycler 1 | 1 . . Operator 1 | . . 1 Swarmer 3 | . . 3 Grunt 8 | . 6 2 Best Kill Streak 4 | 2 4 3 Combat Bots Only 4 | . 4 3 Max Kills in Single Turn 1 | 1 1 1 Gunslinging . | . . . Exploded . | . . . Melee . | . . . Uniques/NPCs Destroyed . | . . . Combat | -11 -10 -9 -------- Run | Scr Mat Mat Damage Taken 626 | . 334 292 Core 57 | . 20 37 Absorbed by Shields . | . . . Core Remaining (%) 96 | 100 92 . Volleys Fired 63 | 4 29 30 Largest 2 | 2 2 2 Hottest 105 | 60 80 105 Shots Fired 111 | 8 54 49 Gun 111 | 8 54 49 Cannon . | . . . Launcher . | . . . Special . | . . . Kinetic 26 | 4 22 . Thermal 66 | 4 24 38 Explosive . | . . . Electromagnetic 19 | . 8 11 Robot Hit Streak 21 | 4 21 7 Robot Miss Streak 3 | 2 3 3 Penetration Max . | . . . Secondary Targets 1 | . 1 . Max Gunslinging Chain 1 | . 1 . Shots Hit Robots 70 | 5 39 26 Core Hits 23 | 2 13 8 Critical Hits . | . . . Critical Kills . | . . . Critical Parts Destroyed . | . . . Melee Attacks . | . . . Impact . | . . . Slashing . | . . . Piercing . | . . . Sneak Attacks . | . . . Combat Hostiles . | . . . Follow-up Attacks . | . . . Damage Inflicted 810 | 61 445 304 Guns 810 | 61 445 304 Cannons . | . . . Explosions . | . . . Melee . | . . . Ramming . | . . . Kinetic 225 | 30 195 . Thermal 470 | 31 196 243 Explosive . | . . . Electromagnetic 115 | . 54 61 Impact . | . . . Slashing . | . . . Piercing . | . . . Highest Corruption . | . . . Average Corruption . | . . . Corruption Purged . | . . . Overload Shots . | . . . Overflow Damage . | . . . Projectiles . | . . . Explosions . | . . . Melee . | . . . Knockbacks . | . . . Impact . | . . . Kinetic . | . . . Secondary . | . . . Self-Inflicted Damage . | . . . Shots . | . . . Rammed . | . . . Targets Rammed . | . . . Kicked . | . . . Crushed . | . . . Highest Temperature 378 | 20 112 378 Average Temperature 102 | 20 46 171 Received Heat Transfer 300 | . 186 114 Effects 4 | . . 4 Shutdowns 2 | . . 2 Energy Bleed 2 | . . 2 Siege Activations . | . . . Robots Corrupted . | . . . Combat Hostiles . | . . . Parts Fried . | . . . Impact Corruptions . | . . . Robots Melted . | . . . Combat Hostiles . | . . . Parts Melted 1 | . . 1 Heat Transferred 1073 | 75 450 548 Parts Sabotaged . | . . . Parts Stolen . | . . . Parts Stripped . | . . . Power Chain Reactions . | . . . Missiles Intercepted . | . . . Alert | -11 -10 -9 ------- Run | Scr Mat Mat Peak Influence 191 | 10 191 165 Average Influence 104 | 7 109 119 Maximum Alert Level . | . . . Low Security (%) 100 | 100 100 100 Level 1 . | . . . Level 2 . | . . . Level 3 . | . . . Level 4 . | . . . Level 5 . | . . . High Security . | . . . Max Security . | . . . Squads Dispatched 4 | . 2 2 Investigation . | . . . Extermination . | . . . Reinforcement 4 | . 2 2 Assault . | . . . Garrison . | . . . Intercept . | . . . Construction Impeded . | . . . Haulers Reinforced . | . . . Stealth | -11 -10 -9 --------- Run | Scr Mat Mat Distress Signals 1 | . 1 . Communications Jammed . | . . . Distress Signals . | . . . Times Spotted 18 | . 9 9 Peak Tracking Total 3 | . 3 3 Tactical Retreats . | . . . Traps | -11 -10 -9 ------- Run | Scr Mat Mat Traps Triggered . | . . . Indirectly . | . . . Trap Hack Attempts . | . . . Triggered . | . . . Disarmed . | . . . Reprogrammed . | . . . Reused . | . . . Traps Extracted . | . . . Installed . | . . . Triggered . | . . . Machines | -11 -10 -9 ---------- Run | Scr Mat Mat Machines Disabled . | . . . Max in Single Turn . | . . . Machines Sabotaged . | . . . Garrisons Compromised . | . . . Overloaded Fab Kills . | . . . Fab Network Shutdowns . | . . . Hacking | -11 -10 -9 --------- Run | Scr Mat Mat Machines Accessed 1 | . 1 . Terminals 1 | . 1 . Fabricators . | . . . Repair Stations . | . . . Recycling Units . | . . . Scanalyzers . | . . . Garrison Access . | . . . Total Hacks 3 | . 3 . Successful 1 | . 1 . Failed 2 | . 2 . Catastrophic 1 | . 1 . Database Lockouts . | . . . Manual 3 | . 3 . Terminals 3 | . 3 . Fabricators . | . . . Repair Stations . | . . . Recycling Units . | . . . Scanalyzers . | . . . Garrison Access . | . . . Terminal Hacks . | . . . Fabricator Hacks . | . . . Repair Station Hacks . | . . . Recycling Unit Hacks . | . . . Scanalyzer . | . . . Garrison Access Hacks . | . . . Unauthorized Hacks 1 | . 1 . Terminals 1 | . 1 . Botnet 1 | . 1 . Fabricators . | . . . Repair Stations . | . . . Recycling Units . | . . . Scanalyzers . | . . . Garrison Access . | . . . Data Cores Recovered . | . . . Used . | . . . Hacking Detections 1 | . 1 . Full Trace Events . | . . . Feedback Events . | . . . Feedback Blocked . | . . . Robot Schematics Acquired . | . . . Robots Built . | . . . Matter . | . . . Time . | . . . Total Robot Build Rating . | . . . Part Schematics Acquired . | . . . Parts Built . | . . . Matter . | . . . Time . | . . . Total Part Build Rating . | . . . Parts Repaired . | . . . Time . | . . . Parts Recycled . | . . . Recycled Matter . | . . . Retrieved Matter . | . . . Retrieved Components . | . . . Parts Scanalyzed . | . . . Part Schematics Acquired . | . . . Parts Damaged . | . . . Bothacking | -11 -10 -9 ------------ Run | Scr Mat Mat Used RIF Installer . | . . . Robots Hacked . | . . . Non-combat . | . . . Combat . | . . . Robot Hacks Applied . | . . . Relay Couplers Released . | . . . Robots Rewired . | . . . Allies Hacked . | . . . Hacks Repelled . | . . . Allies | -11 -10 -9 -------- Run | Scr Mat Mat Total Allies . | . . . Largest Group . | . . . Highest-Rated Group . | . . . Highest-Rated Ally . | . . . Total Orders . | . . . Ally Attacks . | . . . Total Damage . | . . . Kills . | . . . Allies Corrupted . | . . . Allies Melted . | . . . Intel | -11 -10 -9 ------- Run | Scr Mat Mat Robot Analysis Total . | . . . Derelict Logs Recovered . | . . . Drone Launches . | . . . Drone Recoveries . | . . . Exploration | -11 -10 -9 ------------- Run | Scr Mat Mat Turns Passed 498 | 42 255 201 Spaces Moved 298 | 28 153 117 Core . | . . . Treads . | . . . Legs . | . . . Wheels 238 | 28 153 57 Hover . | . . . Flight 60 | . . 60 Fastest Speed 34 | 90 90 34 Average Speed 84 | 90 95 68 Slowest Speed 117 | 90 100 117 Overloaded Moves . | . . . Propulsion Burnouts . | . . . Robots Hopped . | . . . Cave-ins Triggered . | . . . Exploration Rate (%) 18 | 3 40 13 Regions Visited 2 Branch Regions . Pre-discovered Areas . | . . . Known Exits Taken . | . . . Unknown Exits Taken 2 | 1 1 . Scrap Searched . | . . . Spaces Dug . | . . . Terrain Destroyed . | . . . Melee . | . . . Projectile . | . . . AOE . | . . . Actions | -11 -10 -9 --------- Run | Scr Mat Mat Total 433 | 38 207 188 Wait 44 | . 16 28 Move 296 | 27 152 117 Hop . | . . . Pick Up 3 | . 3 . Fast Attach 7 | 1 1 5 Attach 8 | 2 2 4 Detach 3 | . 1 2 Swap 2 | . 2 . Drop 7 | 4 1 2 Fire 63 | 4 29 30 Melee . | . . . Ram . | . . . Kick . | . . . Crush . | . . . Escape Stasis . | . . . Rewire . | . . . Trap . | . . . Miscellaneous . | . . . Route ------- -11/Scrapyard -10/Materials (discovered 2 exits: [*Mat] / [*Min]) -9/Materials History --------- Turn | Location | Event 18 | -11/Scrapyard | Discovered new exit (range 3) 43 | -11/Scrapyard | Entered Materials 80 | -10/Materials | Discovered new exit (range 13) 283 | -10/Materials | Discovered new exit (range 14) 298 | -10/Materials | Entered another Materials area 298 | -9/Materials | Evolved 2 slots: Propulsion x1, Utility x1 333 | -9/Materials | Build established: Mutant 499 | -9/Materials | Self-destructed Last Messages --------------- 00418_ Acquired 10 matter. 00419_ K-01 Serf collects debris. 00448_ EM Pulse Gun destroyed. 00454_ Ion Engine melted. 00454_ G-34 Mercenary destroyed. 00468_ Overheating: Energy bleed (-22). 00471_ Particle Gun destroyed. 00480_ Sml. Laser destroyed. 00482_ Flight Unit destroyed. 00483_ K-01 Serf collects debris. 00485_ Power failure, Lgt. Ion Engine shutdown. 00485_ K-01 Serf collects debris. 00486_ Imp. Sensor Array destroyed. 00487_ Overheating: Energy bleed (-30). 00487_ G-34 Mercenary destroyed. 00487_ K-01 Serf collects debris. 00492_ Power failure, Lgt. Ion Engine shutdown. 00493_ K-01 Serf collects debris. 00493_ Flight Unit destroyed. 00496_ K-01 Serf collects debris. Map ----- +----------------------------------------------------+ | ??????????# # #?""" #?????????? | | ??????????# ###### ??????????? | | ??????????##### ###+##### # """ "??????????? | | ??????????????# ## + + """ T??????????? | | ??????????????# ## ### # """ "??????????? | | ??????????????# ##!% ]#?# # ??????????? | | ??????????????# ##! #?# /%############???????? | | ??????????????# ## #?# ## #???????? | | ?????????????## ## ### ## T #???????? | | ?????????????# ! ####### # ????????? | | ?????????????# # """ """ #???????? | | ?????????????# + """ """ #???????? | | ?????????????# = # """ """ #???????? | | ?????????????# ###+### # #???????? | | ?????????????########*% ## ## #???????? | | ????????????????????# ## ############???????? | | ????????????????????# ## #??????????????????? | | ????????????????????# ## #??????????????????? | | ????????????????????# ## #??????????????????? | | ????????????????????# ## #??????????????????? | | ????????????????????# ## #??????????????????? | | ????????????????????# ## #??????????????????? | | ????????????????????# ## #??????????????????? | | ??????????????????######### #??????????????????? | | ??????????????????# !%g% #??????????????????? | | ??????????????????# "T" @# #??????????????????? | | ??????????????????# k # #??????????????????? | | ??????????????????# # #??????????????????? | | ??????????????????# # #??????????????????? | | ??????????????????######### #??????????????????? | | ??????????????????????????# #??????????????????? | | ??????????????????????????# #??????????????????? | | ??????????????????????????# #??????????????????? | | ??????????????????????????# #??????????????????? | | ??????????????????????????? #??????????????????? | | ??????????????????????????? #??????????????????? | | ??????????????????????????? #??????????????????? | | ??????????????????????????? #??????????????????? | | ??????????????????????????? ???????????????????? | | ?????????????????????????????????????????????????? | | ?????????????????????????????????????????????????? | | ?????????????????????????????????????????????????? | | ?????????????????????????????????????????????????? | | ?????????????????????????????????????????????????? | | ?????????????????????????????????????????????????? | | ?????????????????????????????????????????????????? | | ?????????????????????????????????????????????????? | | ?????????????????????????????????????????????????? | | ?????????????????????????????????????????????????? | | ?????????????????????????????????????????????????? | +----------------------------------------------------+ Best States ------------- Heat Dissipation 28 Energy Generation 10 Energy Capacity 250 Matter Stores 300 Matter Capacity 300 Sight Range 16 Robot Scan Range 13 Terrain Scan Density 60 Evasion (%) 62 Offensive Hacking 10 Item Schematics ----------------- None Robot Schematics ------------------ None Fabricated ------------ Nothing Alien Tech Used ----------------- None Achievements -------------- None Challenges ------------ None Game ------ Seed ReinforcedDeuteriumShotgun Manual? 0 Play Time 00:08:25 Cumulative 194.5 hours Start 2020.05.09 @ 19:49:22 End 2020.05.09 @ 19:55:02 Sessions 1 Manual Loads 0 Difficulty Rogue Special Mode None Game No. 251 Rogue 240 Adventurer 11 Explorer 0 Win Type - Total 0 Types 0/0/0/0/0/0/0 Lore% 50 Gallery% 64 Achievement% 44 Wizard Run 0 Options --------- ASCII 0 Keyboard 1 Movement Numpad Keybinds 0 Fullscreen 1 Font 12/Terminus Map View 83x54 Tactical HUD 1 Map Filters NONE Filters NONE Steam 1 RUN: 2e4be58a-fe29-417c-9b0a-d1cf29b7f93b